bitfinex-derivatives/quotes_BNBF0:USTF0_20250116
["timestamp","ask_amount","ask_price","bid_price","bid_amount"]
[1737016098049,2.13072651,710.95,709.53,2.83]
[1737016098050,1.04362114,710.35,709.53,2.83]
[1737016099749,1.04362114,710.36,709.53,2.83]
[1737016100650,2.13072651,710.94,709.53,2.83]
[1737016100651,1.04362114,710.34,709.53,2.83]
[1737016103852,1.04362114,710.4,709.53,2.83]
[1737016106255,1.04362114,710.38,709.53,2.83]
[1737016107255,1.04362114,710.36,709.53,2.83]
[1737016109159,1.04362114,710.37,709.53,2.83]
[1737016110252,1.04362114,710.36,709.53,2.83]
[1737016112754,1.04362114,710.35,709.53,2.83]
[1737016113560,2.13072651,710.93,709.53,2.83]
[1737016113561,1.04362114,710.43,709.53,2.83]
[1737016114762,1.04362114,710.47,709.53,2.83]
[1737016115958,1.04362114,710.48,709.53,2.83]
[1737016116965,2.13072651,711.2,709.53,2.83]
[1737016116966,1.04362114,710.45,709.53,2.83]
[1737016118668,1.04362114,710.44,709.53,2.83]
[1737016121768,1.04362114,710.46,709.53,2.83]
[1737016122767,1.04362114,710.41,709.53,2.83]
[1737016123769,1.04362114,710.4,709.53,2.83]
[1737016124763,1.04362114,710.35,709.54,1.05386184]
[1737016125771,1.04362114,710.4,709.52,1.05386184]
[1737016126169,1.04362114,710.4,709.52,3.65186184]
[1737016126769,1.04362114,710.44,709.52,2.598]
[1737016127776,1.04362114,710.45,709.52,2.598]
[1737016129877,1.04362114,710.46,709.52,2.598]
[1737016130875,1.04362114,710.47,709.52,2.598]
[1737016131881,1.04362114,710.48,709.52,2.598]
[1737016135182,0.69230642,710.93,709.52,2.598]
[1737016135183,1.04362114,710.47,709.52,2.598]
[1737016136384,1.04362114,710.51,709.52,2.598]
[1737016137183,1.04362114,710.5,709.52,2.598]
[1737016138378,1.04362114,710.51,709.52,2.598]
[1737016139185,1.04362114,710.52,709.52,2.598]
[1737016140387,1.04362114,710.51,709.52,2.598]
[1737016141582,1.04362114,710.52,709.52,2.598]
[1737016144390,1.04362114,710.51,709.52,2.598]
[1737016145389,1.04362114,710.47,709.52,2.598]
[1737016147095,1.04362114,710.46,709.52,2.598]
[1737016148298,1.04362114,710.47,709.52,2.598]
[1737016149192,1.04362114,710.44,709.56,1.05386184]
[1737016150495,1.04362114,710.44,709.56,3.21086184]
[1737016150695,1.04362114,710.54,709.56,2.157]
[1737016151899,1.04362114,710.55,709.56,2.157]
[1737016154297,1.04362114,710.56,709.56,3.325]
[1737016155395,1.04362114,710.57,709.56,3.325]
[1737016156497,1.04362114,710.53,709.59,1.05386184]
[1737016157301,1.04362114,710.63,709.56,3.325]
[1737016158303,1.04362114,710.67,709.56,4.37886184]
[1737016159704,1.04362114,710.68,709.56,3.325]
[1737016160804,1.04362114,710.7,709.56,3.325]
[1737016161900,1.04362114,710.72,709.56,3.325]
[1737016162806,1.04362114,710.73,709.56,3.325]
[1737016164102,1.04362114,710.76,709.57,0.25880914]
[1737016164306,1.04362114,710.76,709.58,0.28185687]
[1737016164505,1.04362114,710.76,709.59,0.25880711]
[1737016164706,1.04362114,710.76,709.58,0.28185687]
[1737016164907,1.04362114,710.76,709.59,0.25881041]
[1737016165106,1.04362114,710.76,709.58,0.28185687]
[1737016165309,1.04362114,710.77,709.59,1.3126723]
[1737016165511,1.04362114,710.77,709.59,1.05386184]
[1737016166304,1.04362114,710.79,709.59,1.05386184]
[1737016166508,1.04362114,710.79,709.58,0.28185687]
[1737016166905,1.04362114,710.79,709.59,0.2588074]
[1737016167203,1.04362114,710.79,709.6,0.28184892]
[1737016167603,2.13072651,711.45,709.6,0.28184892]
[1737016167604,1.04362114,710.82,709.6,0.28184892]
[1737016168606,1.04362114,710.81,709.6,0.28184892]
[1737016169709,2.13072651,711.49,709.6,0.28184892]
[1737016169710,1.04362114,710.8,709.6,0.28184892]
[1737016170310,1.04362114,710.8,709.61,0.25880787]
[1737016170511,1.04362114,710.8,709.6,0.28184892]
[1737016171807,1.04362114,710.78,709.6,0.28184892]
[1737016172810,1.04362114,710.74,709.6,0.28184892]
[1737016173713,1.04362114,710.74,709.6,2.63584892]
[1737016174708,1.04362114,710.73,709.6,2.63584892]
[1737016175913,1.04362114,710.95,709.6,2.63584892]
[1737016175914,1.04362114,710.74,709.6,2.63584892]
[1737016177008,1.04362114,710.72,709.6,2.63584892]
[1737016177410,1.04362114,710.72,709.6,3.57284892]
[1737016178115,1.04362114,710.7,709.6,3.291]
[1737016179117,1.04362114,710.69,709.6,3.291]
[1737016180215,1.04362114,710.68,709.6,3.291]
[1737016181519,1.04362114,710.72,709.6,3.291]
[1737016183022,1.04362114,710.71,709.6,3.291]
[1737016184028,1.04362114,710.61,709.6,3.291]
[1737016184927,1.04362114,710.62,709.6,3.291]
[1737016186022,1.04362114,710.76,709.6,3.291]
[1737016187533,1.04362114,710.75,709.6,3.291]
[1737016188732,1.04362114,710.8,709.6,3.291]
[1737016190125,2.13072651,711.68,709.6,3.291]
[1737016190126,1.04362114,710.78,709.6,3.291]
[1737016193036,1.04362114,710.79,709.6,3.291]
[1737016194137,1.04362114,710.72,709.6,3.291]
[1737016195428,1.04362114,710.73,709.6,3.291]
[1737016196436,1.04362114,710.76,709.6,3.291]
[1737016197237,1.04362114,710.67,709.6,3.291]
[1737016199033,2.13072651,711.44,709.6,3.291]
[1737016199034,1.04362114,710.57,709.6,3.291]
[1737016200036,1.04362114,710.58,709.6,3.291]
[1737016202537,1.04362114,710.57,709.6,3.291]
[1737016204533,1.04362114,710.55,709.6,3.291]
[1737016205742,1.04362114,710.43,709.6,3.291]
[1737016207648,1.04362114,710.46,709.6,3.291]
[1737016209048,1.04362114,710.41,709.6,3.291]
[1737016210150,1.04362114,710.46,709.6,3.291]
[1737016211344,1.04362114,710.56,709.6,3.291]
[1737016212563,1.04362114,710.6,709.6,3.291]
[1737016213348,0.28145625,710.59,709.6,3.291]
[1737016229366,1.04362114,710.85,709.6,3.291]
[1737016230260,1.04362114,710.9,709.6,3.291]
[1737016231463,1.04362114,710.92,709.6,3.291]
[1737016233868,1.25234537,711.5,709.6,3.291]
[1737016233869,1.04362114,710.93,709.6,3.291]
[1737016235067,1.04362114,710.86,709.6,3.291]
[1737016235874,1.04362114,710.85,709.6,3.291]
[1737016236965,2.13072651,711.42,709.6,3.291]
[1737016236966,1.04362114,710.79,709.6,3.291]
[1737016238278,1.04362114,710.85,709.6,3.291]
[1737016238971,1.04362114,710.83,709.6,3.291]
[1737016239973,1.04362114,710.87,709.6,3.291]
[1737016241071,1.04362114,710.85,709.6,3.291]
[1737016242471,1.04362114,710.86,709.6,3.291]
[1737016245374,2.13072651,711.48,709.6,3.291]
[1737016245375,1.04362114,710.84,709.6,3.291]
[1737016246670,1.04362114,710.83,709.6,3.291]
[1737016247776,1.04362114,710.81,709.6,3.291]
[1737016248979,1.04362114,710.86,709.6,3.291]
[1737016251078,1.04362114,710.83,709.6,3.291]
[1737016252177,1.04362114,710.79,709.6,3.291]
[1737016253172,1.04362114,710.74,709.6,3.291]
[1737016254470,1.04362114,710.7,709.6,3.291]
[1737016255477,1.04362114,710.92,709.6,3.291]
[1737016255478,1.04362114,710.69,709.6,3.291]
[1737016256374,1.04362114,710.67,709.6,3.291]
[1737016257179,1.04362114,710.65,709.6,3.291]
[1737016258380,1.04362114,710.72,709.6,3.291]
[1737016260378,1.04362114,710.77,709.6,3.291]
[1737016261282,1.04362114,710.74,709.6,3.291]
[1737016263482,1.04362114,710.72,709.6,3.291]
[1737016264381,1.04362114,710.73,709.6,3.291]
[1737016265786,1.04362114,710.68,709.6,3.291]
[1737016266685,1.04362114,710.69,709.6,3.291]
[1737016268386,2.13072651,711.42,709.6,3.291]
[1737016268387,1.04362114,710.62,709.61,1.05386184]
[1737016269586,1.04362114,710.59,709.61,1.05386184]
[1737016269780,1.04362114,710.59,709.61,3.33986184]
[1737016269983,1.04362114,710.59,709.61,4.42686184]
[1737016270686,1.04362114,710.65,709.61,3.373]
[1737016271802,2.13072651,711.45,709.61,3.373]
[1737016271803,1.04362114,710.67,709.61,3.373]
[1737016272891,1.04362114,710.69,709.61,3.373]
[1737016273589,1.04362114,710.67,709.61,3.373]
[1737016274591,1.04362114,710.65,709.61,3.373]
[1737016275891,1.04362114,710.66,709.61,3.373]
[1737016276891,1.04362114,710.52,709.61,3.373]
[1737016277888,1.04362114,710.41,709.61,3.373]
[1737016278886,1.04362114,710.46,709.61,3.373]
[1737016280192,1.04362114,710.71,709.61,3.373]
[1737016280992,1.04362114,710.74,709.61,3.373]
[1737016283090,0.69090853,711.5,709.61,3.373]
[1737016283091,1.04362114,710.76,709.61,3.373]
[1737016285292,2.13072651,711.63,709.61,3.373]
[1737016285293,1.04362114,710.69,709.61,3.373]
[1737016286190,1.04362114,710.58,709.61,3.373]
[1737016288191,1.04362114,710.56,709.61,3.373]
[1737016288997,1.04362114,710.54,709.61,3.373]
[1737016290196,1.04362114,710.5,709.61,3.373]
[1737016291096,1.04362114,710.49,709.61,3.373]
[1737016292797,1.04362114,710.5,709.61,3.373]
[1737016295092,1.04362114,710.51,709.61,3.373]
[1737016295900,1.04362114,710.95,709.61,3.373]
[1737016296098,0.28131769,710.94,709.61,3.373]
[1737016298796,1.32493883,710.94,709.61,3.373]
[1737016299896,1.04362114,710.91,709.61,3.373]
[1737016300099,0.28133352,710.9,709.61,3.373]
[1737016300897,1.04362114,710.89,709.61,3.373]
[1737016301099,0.28134143,710.88,709.61,3.373]
[1737016302003,1.04362114,710.85,709.61,3.373]
[1737016302300,0.28135726,710.84,709.61,3.373]
[1737016303101,1.04362114,710.83,709.61,3.373]
[1737016304098,1.04362114,710.82,709.61,3.373]
[1737016305195,1.04362114,710.79,709.61,3.373]
[1737016307305,1.04362114,710.74,709.61,3.373]
[1737016308398,0.28135726,710.84,709.61,3.373]
[1737016308399,1.04362114,710.68,709.61,3.373]
[1737016309405,1.04362114,710.57,709.61,3.373]
[1737016310107,1.04362114,710.58,709.61,3.373]
[1737016312399,1.04362114,710.57,709.61,3.373]
[1737016313301,1.04362114,710.53,709.61,3.373]
[1737016314504,1.04362114,710.51,709.61,3.373]
[1737016315305,1.04362114,710.47,709.61,3.373]
[1737016316606,1.04362114,710.52,709.61,3.373]
[1737016317505,0.69274983,710.83,709.61,3.373]
[1737016317506,1.04362114,710.55,709.61,3.373]
[1737016318506,1.04362114,710.54,709.61,3.373]
[1737016319406,0.28135726,710.84,709.61,3.373]
[1737016319407,1.04362114,710.57,709.61,3.373]
[1737016320405,1.3249784,710.84,709.61,3.373]
[1737016320406,1.04362114,710.59,709.61,3.373]
[1737016321905,1.04362114,710.61,709.61,3.373]
[1737016322907,1.04362114,710.6,709.61,3.373]
[1737016324802,1.04362114,710.57,709.61,3.373]
[1737016327408,0.28135726,710.84,709.61,3.373]
[1737016329606,1.04362114,710.27,709.61,3.373]
[1737016330511,1.04362114,710.28,709.61,3.373]
[1737016331310,1.04362114,710.31,709.61,3.373]
[1737016332408,0.69239236,710.83,709.61,3.373]
[1737016332409,1.04362114,710.35,709.61,3.373]
[1737016333414,1.04362114,710.57,709.61,3.373]
[1737016333415,1.04362114,710.34,709.61,3.373]
[1737016334219,0.69239236,710.83,709.61,3.373]
[1737016334220,1.04362114,710.28,709.61,3.373]
[1737016335319,1.04362114,710.32,709.61,3.373]
[1737016336323,1.04362114,710.32,709.61,0.44070566]
[1737016336525,1.04362114,710.32,708.68,1.05386184]
[1737016336825,1.04362114,710.39,708.52,1.05386184]
[1737016337022,1.04362114,710.39,708.53,0.28227456]
[1737016337423,1.04362114,710.39,708.54,0.25917908]
[1737016337718,1.04362114,710.39,708.54,1.33417255]
[1737016337927,1.04362114,710.2,708.55,0.25917255]
[1737016338318,1.04362114,710.2,708.56,0.28226261]
[1737016338522,1.04362114,710.2,708.57,0.25917494]
[1737016338825,0.28161477,710.19,708.56,0.28226261]
[1737016352733,0.28161477,710.19,708.57,0.2592239]
[1737016353031,0.28161477,710.19,708.56,0.28226261]
[1737016356939,0.28161477,710.19,708.56,1.41126261]
[1737016358235,0.28161477,710.19,708.56,2.54926261]
[1737016366148,1.04362114,710.15,708.56,2.54926261]
[1737016366744,0.28163857,710.13,708.56,3.36726261]
[1737016367147,1.04362114,710.07,708.56,3.36726261]
[1737016367547,0.2816703,710.05,708.56,3.36726261]
[1737016368144,1.04362114,710.01,708.56,3.36726261]
[1737016368449,0.2816941,709.99,708.56,3.36726261]
[1737016369345,1.04362114,709.83,708.56,3.36726261]
[1737016369550,0.28176157,709.82,708.56,3.36726261]
[1737016370645,1.04362114,709.73,708.56,3.085]
[1737016371151,0.28180127,709.72,708.56,3.085]
[1737016371852,1.04362114,709.59,708.56,3.085]
[1737016372853,1.04362114,709.66,708.56,3.085]
[1737016373656,0.28182907,709.65,708.56,3.085]
[1737016387064,1.04362114,709.61,708.56,3.085]
[1737016387859,1.04362114,709.64,708.56,3.085]
[1737016389362,0.28182907,709.65,708.56,3.085]
[1737016393168,1.04362114,709.58,708.56,3.085]
[1737016394164,0.28182907,709.65,708.56,3.085]
[1737016394165,1.04362114,709.53,708.56,3.085]
[1737016395269,1.04362114,709.63,708.56,3.085]
[1737016397167,0.28182907,709.65,708.56,3.085]
[1737016397168,1.32545021,709.65,708.56,3.085]
[1737016397970,1.04362114,709.64,708.56,3.085]
[1737016398975,1.32545021,709.65,708.56,3.085]
[1737016400275,1.04362114,709.64,708.56,3.085]
[1737016402175,1.32545021,709.65,708.56,3.085]
[1737016403074,1.04362114,709.62,708.56,3.085]
[1737016404376,1.04362114,709.59,708.56,3.085]
[1737016406678,1.04362114,709.58,708.56,3.085]
[1737016407897,1.32548198,709.57,708.56,3.085]
[1737016408998,1.04362114,709.44,708.56,3.085]
[1737016410298,1.04362114,709.45,708.56,3.085]
[1737016411197,1.04362114,709.51,708.56,3.085]
[1737016412297,1.04362114,709.54,708.56,3.085]
[1737016413480,0.28186084,709.57,708.56,3.085]
[1737016415481,1.04362114,709.54,708.56,3.085]
[1737016416584,0.28186084,709.57,708.56,3.085]
[1737016416585,1.04362114,709.53,708.56,3.085]
[1737016417509,0.28186084,709.57,708.56,3.085]
[1737016417510,1.04362114,709.55,708.56,3.085]
[1737016419684,1.04362114,709.54,708.56,3.085]
[1737016420884,1.04362114,709.53,708.56,3.085]
[1737016421786,1.04362114,709.45,708.56,3.085]
[1737016422886,1.04362114,709.48,708.56,3.085]
[1737016424788,1.04362114,709.46,708.56,3.085]
[1737016425887,1.04362114,709.45,708.56,3.085]
[1737016426782,1.04362114,709.47,708.56,3.085]
[1737016427796,1.04362114,709.43,708.56,3.085]
[1737016428689,1.04362114,709.51,708.56,3.085]
[1737016429292,1.04362114,709.49,708.56,3.085]
[1737016431190,1.04362114,709.42,708.56,3.085]
[1737016432096,1.04362114,709.37,708.56,3.085]
[1737016433190,1.04362114,709.35,708.56,3.085]
[1737016434192,1.04362114,709.34,708.56,3.085]
[1737016436496,1.04362114,709.43,708.56,3.085]
[1737016437594,1.04362114,709.4,708.56,3.085]
[1737016438697,0.28186084,709.57,708.56,3.085]
[1737016442703,1.04362114,709.44,708.56,3.085]
[1737016443507,1.04362114,709.43,708.56,3.085]
[1737016445503,1.04362114,709.44,708.56,3.085]
[1737016446503,1.04362114,709.4,708.56,3.085]
[1737016447809,0.28186084,709.57,708.56,3.085]
[1737016447810,1.04362114,709.43,708.56,3.085]
[1737016449513,1.04362114,709.53,708.56,3.085]
[1737016450514,0.28186084,709.57,708.56,3.085]
[1737016450515,1.04362114,709.48,708.56,3.085]
[1737016451512,1.04362114,709.44,708.56,3.085]
[1737016452913,0.28186084,709.57,708.56,3.085]
[1737016452914,1.04362114,709.46,708.56,3.085]
[1737016453614,1.04362114,709.55,708.56,3.085]
[1737016454714,1.04362114,709.54,708.56,3.085]
[1737016456115,1.04362114,709.55,708.56,3.085]
[1737016457324,0.28186084,709.57,708.56,3.085]
[1737016460517,1.04362114,709.68,708.56,3.085]
[1737016461517,1.04362114,709.68,708.56,3.36726261]
[1737016461717,1.04362114,709.68,708.57,0.25916877]
[1737016462020,1.04362114,709.85,708.57,0.25916877]
[1737016463117,1.04362114,709.85,708.57,3.40516877]
[1737016463319,1.04362114,709.85,708.58,0.25916877]
[1737016464123,1.04362114,709.88,708.58,0.25916877]
[1737016465119,1.04362114,709.92,708.58,0.25916877]
[1737016466023,1.04362114,709.92,708.57,3.146]
[1737016466218,1.04362114,709.91,708.57,3.146]
[1737016467321,1.04362114,709.94,708.57,3.146]
[1737016468216,1.04362114,709.95,708.57,3.146]
[1737016468418,0.28171791,709.93,708.57,3.146]
[1737016469526,1.04362114,709.75,708.57,3.146]
[1737016470420,1.04362114,709.65,708.57,3.146]
[1737016471527,1.04362114,709.62,708.57,3.146]
[1737016472226,1.04362114,709.63,708.57,3.146]
[1737016474430,0.69088773,709.92,708.57,3.146]
[1737016474431,1.04362114,709.62,708.57,3.146]
[1737016476735,1.04362114,709.63,708.57,3.146]
[1737016477439,1.04362114,709.73,708.57,3.146]
[1737016478536,1.04362114,709.89,708.57,3.146]
[1737016479339,0.28171791,709.93,708.57,3.146]
[1737016480938,0.28171791,709.93,708.58,0.25916579]
[1737016481534,0.28171791,709.93,708.59,0.25916579]
[1737016481741,0.28171791,709.93,708.6,0.25916579]
[1737016482042,0.28171791,709.93,708.61,0.25916579]
[1737016482242,0.28171791,709.93,708.62,0.25916579]
[1737016482438,0.28171791,709.93,708.63,0.28223473]
[1737016482640,0.28171791,709.93,708.64,0.25916579]
[1737016483038,0.28171791,709.93,708.63,0.28223473]
[1737016483242,0.28171791,709.93,708.65,0.25914798]
[1737016483440,0.28171791,709.93,708.63,0.28223473]
[1737016490455,1.04362114,709.83,708.63,0.28223473]
[1737016490954,0.28176157,709.82,708.63,0.28223473]
[1737016491459,1.04362114,709.76,708.63,0.28223473]
[1737016493459,1.04362114,709.77,708.63,0.28223473]
[1737016495461,1.04362114,709.8,708.63,0.28223473]
[1737016496559,1.04362114,709.8,708.63,1.30023473]
[1737016496961,0.28176157,709.82,708.63,1.30023473]
[1737016498759,0.28176157,709.82,708.63,2.21423473]
[1737016505456,0.28176157,709.82,708.63,3.37123473]
[1737016506258,1.04362114,709.81,708.63,3.37123473]
[1737016508965,0.28176157,709.82,708.63,3.37123473]
[1737016511962,1.04362114,709.77,708.63,3.37123473]
[1737016513264,1.04362114,709.78,708.63,3.37123473]
[1737016514072,1.04362114,709.78,708.64,0.25915049]
[1737016514371,0.28176157,709.82,708.63,2.45723473]
[1737016514973,0.28176157,709.82,708.64,0.25915109]
[1737016515370,0.28176157,709.82,708.64,1.30715109]
[1737016515570,0.28176157,709.82,708.64,1.048]
[1737016516368,0.28176157,709.82,708.65,1.05386184]
[1737016517473,0.28176157,709.82,708.64,1.048]
[1737016517673,0.28176157,709.82,708.64,1.919]
[1737016519667,0.28176157,709.82,708.64,2.674]
[1737016521176,1.32538271,709.82,708.64,2.674]
[1737016522575,1.04362114,709.79,708.64,2.674]
[1737016523876,0.28176157,709.82,708.64,2.674]
[1737016524867,0.28176157,709.82,708.65,0.25915833]
[1737016525475,0.28176157,709.82,708.66,0.28222278]
[1737016525668,0.28176157,709.82,708.67,0.25913677]
[1737016525874,0.28176157,709.82,708.67,1.05386184]
[1737016526071,0.28176157,709.82,708.68,0.28221482]
[1737016527577,0.28176157,709.82,708.69,0.25915837]
[1737016527877,0.28176157,709.82,708.68,0.28221482]
[1737016528078,1.04362114,709.8,708.68,0.28221482]
[1737016529279,0.28176157,709.82,708.68,0.28221482]
[1737016529280,1.04362114,709.78,708.68,0.28221482]
[1737016530680,1.04362114,709.79,708.68,0.28221482]
[1737016531779,0.28176157,709.82,708.68,0.28221482]
[1737016532081,0.28176157,709.82,708.68,1.22421482]
[1737016534180,1.04362114,709.81,708.68,0.942]
[1737016534376,0.28176951,709.8,708.68,0.942]
[1737016535184,1.04362114,709.7,708.68,0.942]
[1737016535784,0.28176951,709.8,708.68,0.942]
[1737016535785,1.04362114,709.71,708.68,0.942]
[1737016536884,1.04362114,709.73,708.68,0.942]
[1737016537880,1.04362114,709.72,708.68,0.942]
[1737016538680,1.04362114,709.72,708.68,2.037]
[1737016538885,1.04362114,709.73,708.68,2.037]
[1737016542088,1.04362114,709.72,708.68,2.037]
[1737016542785,1.04362114,709.75,708.68,2.037]
[1737016543580,0.28176951,709.8,708.68,2.037]
[1737016543581,1.04362114,709.76,708.68,2.037]
[1737016544983,1.04362114,709.76,708.68,3.027]
[1737016545685,0.28176951,709.8,708.68,3.027]
[1737016545686,1.04362114,709.77,708.68,3.027]
[1737016546786,0.28176951,709.8,708.68,3.027]
[1737016550784,1.04362114,709.77,708.68,3.027]
[1737016551991,1.32539065,709.8,708.68,3.027]
[1737016553389,0.28176951,709.8,708.68,3.027]
[1737016554789,1.04362114,709.79,708.68,3.027]
[1737016555994,1.04362114,709.68,708.68,3.027]
[1737016558098,1.04362114,709.71,708.68,3.027]
[1737016558897,1.04362114,709.72,708.68,3.027]
[1737016560089,1.04362114,709.73,708.68,3.027]
[1737016560798,1.04362114,709.69,708.68,3.027]
[1737016561597,1.04362114,709.67,708.68,3.027]
[1737016562598,0.28176951,709.8,708.68,3.027]
[1737016562599,1.04362114,709.66,708.68,3.027]
[1737016564101,1.04362114,709.69,708.68,3.027]
[1737016565396,1.04362114,709.68,708.68,3.027]
[1737016566501,1.04362114,709.7,708.68,3.027]
[1737016568703,0.28176951,709.8,708.68,3.027]
[1737016568704,1.04362114,709.71,708.68,3.027]
[1737016569703,1.04362114,709.73,708.68,3.027]
[1737016571807,0.28176951,709.8,708.68,3.027]
[1737016574007,1.04362114,709.55,708.68,3.027]
[1737016574302,1.04362114,709.55,708.44,1.05386184]
[1737016574906,0.69271642,709.79,707.33,1.05386184]
[1737016574907,1.04362114,709.14,707.33,1.05386184]
[1737016575106,1.04362114,709.14,707.35,0.28274545]
[1737016575302,1.04362114,709.14,707.35,2.73274545]
[1737016575507,1.04362114,709.14,707.35,3.74174545]
[1737016575803,0.28203573,709.13,707.35,3.74174545]
[1737016581607,0.28203573,709.13,707.36,0.25953869]
[1737016581811,0.28203573,709.13,707.38,0.28273346]
[1737016583313,0.28203573,709.13,707.39,0.2595385]
[1737016583510,0.28203573,709.13,707.41,0.28272147]
[1737016585011,0.28203573,709.13,707.42,0.25953662]
[1737016585215,0.28203573,709.13,707.44,0.28270948]
[1737016585411,0.28203573,709.13,707.45,0.25953662]
[1737016585612,0.28203573,709.13,707.46,0.28270149]
[1737016585812,0.28203573,709.13,707.47,0.25953662]
[1737016586009,0.28203573,709.13,707.48,0.2826935]
[1737016586310,0.28203573,709.13,707.49,0.25953662]
[1737016586508,0.28203573,709.13,707.5,0.28268551]
[1737016586712,0.28203573,709.13,707.51,0.25953662]
[1737016586914,0.28203573,709.13,707.52,0.28267752]
[1737016587110,0.28203573,709.13,707.53,0.25953662]
[1737016587312,0.28203573,709.13,707.54,0.28266953]
[1737016587513,0.28203573,709.13,707.55,0.25953662]
[1737016587710,0.28203573,709.13,707.56,0.28266154]
[1737016587916,0.28203573,709.13,707.57,0.25953662]
[1737016588116,0.28203573,709.13,707.56,0.28266154]
[1737016588315,0.28203573,709.13,707.58,0.25950051]
[1737016588515,0.28203573,709.13,707.57,0.25950051]
[1737016588814,0.28203573,709.13,707.58,0.25950051]
[1737016589116,0.28203573,709.13,707.59,0.25950051]
[1737016589316,0.28203573,709.13,707.6,0.54214607]
[1737016589517,0.28203573,709.13,707.61,0.28264156]
[1737016590818,0.28203573,709.13,707.62,0.25950678]
[1737016591013,0.28203573,709.13,707.61,0.28264156]
[1737016591320,0.28203573,709.13,707.62,0.25950355]
[1737016591517,0.28203573,709.13,707.63,0.28263357]
[1737016592711,0.28203573,709.13,707.63,1.26363357]
[1737016594919,0.28203573,709.13,707.64,0.25950724]
[1737016595119,0.28203573,709.13,707.65,0.28262559]
[1737016595318,0.28203573,709.13,707.66,0.25950724]
[1737016595820,0.28203573,709.13,707.67,0.2826176]
[1737016596013,0.28203573,709.13,707.68,0.25950724]
[1737016596419,0.28203573,709.13,707.67,0.2826176]
[1737016602430,0.28203573,709.13,707.67,1.1276176]
[1737016603926,0.28203573,709.13,707.68,0.2594865]
[1737016604328,0.28203573,709.13,707.69,0.28260961]
[1737016616634,0.28203573,709.13,707.75,1.05386184]
[1737016616937,0.28203573,709.13,707.76,0.28258166]
[1737016617735,1.04362114,709.11,707.78,1.05386184]
[1737016619134,1.04362114,709.09,707.79,1.05386184]
[1737016619637,1.04362114,709.09,707.8,0.259476]
[1737016620240,1.04362114,709.0,707.88,1.05386184]
[1737016621334,1.04362114,709.03,707.85,1.05386184]
[1737016621840,1.04362114,709.03,707.86,0.25947138]
[1737016622339,1.04362114,709.03,707.85,1.05386184]
[1737016622544,1.04362114,708.95,707.94,1.05386184]
[1737016622945,1.04362114,708.95,707.94,3.46586184]
[1737016624241,1.04362114,709.1,707.94,2.412]
[1737016625241,1.32565687,709.13,707.96,1.05386184]
[1737016626344,1.04362114,709.11,707.94,3.46586184]
[1737016627344,0.28203573,709.13,707.94,3.46586184]
[1737016627643,0.28203573,709.13,707.94,2.412]
[1737016628444,0.28203573,709.13,707.95,0.28250582]
[1737016631545,1.32565687,709.13,707.95,0.28250582]
[1737016631842,1.32565687,709.13,707.95,1.42050582]
[1737016633549,1.04362114,709.05,707.95,1.42050582]
[1737016634748,0.28203573,709.13,707.95,1.42050582]
[1737016638142,0.28203573,709.13,707.95,2.32650582]
[1737016638347,1.04362114,709.09,707.95,2.32650582]
[1737016639450,0.28203573,709.13,707.95,2.32650582]
[1737016648153,0.28203573,709.13,707.95,3.84150582]
[1737016660863,1.04362114,709.1,707.95,3.84150582]
[1737016662367,1.04362114,708.86,707.95,3.84150582]
[1737016663565,1.04362114,708.99,707.95,3.84150582]
[1737016664467,1.04362114,709.0,707.95,3.84150582]
[1737016665265,1.04362114,709.01,707.95,3.84150582]
[1737016666766,0.28203573,709.13,707.95,3.84150582]
[1737016688781,0.28203573,709.13,707.96,0.25939339]
[1737016689082,0.28203573,709.13,707.97,0.28249784]
[1737016689283,0.28203573,709.13,707.98,0.25939339]
[1737016689481,0.28203573,709.13,707.99,0.28248986]
[1737016689785,0.28203573,709.13,708.0,0.25939339]
[1737016690084,0.28203573,709.13,708.08,1.05386184]
[1737016690283,0.28203573,709.13,708.09,0.25939928]
[1737016690785,0.28203573,709.13,708.01,0.28248188]
[1737016690786,1.04362114,709.11,708.1,0.25939202]
[1737016691086,1.04362114,709.11,708.03,1.05386184]
[1737016691283,1.04362114,709.11,708.04,0.25939831]
[1737016691784,1.04362114,709.12,708.04,0.25939831]